bitfinex-derivatives/quotes_BNBF0:USTF0_20250220
["timestamp","ask_amount","ask_price","bid_price","bid_amount"]
[1740085037082,5.20092758,654.32,653.68,0.3059601]
[1740085037285,3.00453033,654.31,653.68,0.3059601]
[1740085037482,3.00453033,654.3,653.68,0.3059601]
[1740085037682,3.00453033,654.29,653.68,0.3059601]
[1740085037989,3.00453033,654.28,653.68,0.3059601]
[1740085038187,3.00453033,654.27,653.68,0.3059601]
[1740085038486,2.19639725,654.32,653.68,0.3059601]
[1740085038487,3.00453033,654.26,653.68,0.3059601]
[1740085038687,3.00453033,654.25,653.68,0.3059601]
[1740085038987,3.00453033,654.24,653.68,0.3059601]
[1740085039189,5.20092758,654.23,653.68,0.3059601]
[1740085039385,3.00453033,654.22,653.68,0.3059601]
[1740085039586,3.00453033,654.21,653.68,0.3059601]
[1740085039783,3.00453033,654.2,653.68,0.3059601]
[1740085039985,3.00453033,654.19,653.68,0.3059601]
[1740085040186,3.00453033,654.18,653.68,0.3059601]
[1740085040387,3.00453033,654.17,653.68,0.3059601]
[1740085040687,3.00453033,654.16,653.68,0.3059601]
[1740085040889,5.20092758,654.15,653.68,0.3059601]
[1740085041086,3.00453033,654.14,653.68,0.3059601]
[1740085041286,3.00453033,654.13,653.68,0.3059601]
[1740085041483,3.00453033,654.12,653.68,0.3059601]
[1740085041689,3.00453033,654.11,653.68,0.3059601]
[1740085041890,3.00453033,654.1,653.45,1.13863774]
[1740085042191,3.00453033,654.09,653.45,1.13863774]
[1740085042491,0.635,654.36,653.45,1.13863774]
[1740085042492,5.20092758,654.08,653.45,1.13863774]
[1740085042690,3.00453033,654.07,653.45,1.13863774]
[1740085042886,3.00453033,654.06,653.45,1.13863774]
[1740085043091,3.00453033,654.05,653.45,1.13863774]
[1740085043289,3.00453033,654.04,653.45,1.13863774]
[1740085043490,3.00453033,654.03,653.38,1.13863774]
[1740085043686,3.00453033,654.02,653.38,1.13863774]
[1740085043886,3.00453033,654.01,653.38,1.13863774]
[1740085044089,3.00453033,654.0,653.38,1.13863774]
[1740085044297,3.00453033,653.99,653.38,1.13863774]
[1740085044592,2.19639725,654.01,653.38,1.13863774]
[1740085044593,3.00453033,653.98,653.38,1.13863774]
[1740085044793,3.00453033,653.97,653.38,1.13863774]
[1740085044992,3.00453033,653.96,653.38,1.13863774]
[1740085045193,3.00453033,653.95,653.38,1.13863774]
[1740085045392,3.00453033,653.94,653.38,1.13863774]
[1740085045592,3.00453033,653.93,653.38,1.13863774]
[1740085045788,3.00453033,653.93,653.25,0.3061615]
[1740085045789,3.00453033,653.92,653.25,0.3061615]
[1740085045990,3.00453033,653.91,653.25,0.3061615]
[1740085046294,3.00453033,653.9,653.25,0.3061615]
[1740085046495,3.00453033,653.89,653.25,0.3061615]
[1740085046689,3.00453033,653.88,653.25,0.3061615]
[1740085046891,3.00453033,653.87,653.25,0.3061615]
[1740085047087,3.00453033,653.86,653.25,0.3061615]
[1740085047394,3.00453033,653.85,653.25,0.3061615]
[1740085047587,3.00453033,653.84,653.25,0.3061615]
[1740085047788,3.00453033,653.83,653.25,0.3061615]
[1740085047990,3.00453033,653.82,653.25,0.3061615]
[1740085048195,3.00453033,653.81,653.25,0.3061615]
[1740085048397,3.00453033,653.8,653.25,0.3061615]
[1740085048696,3.00453033,653.79,653.25,0.3061615]
[1740085048894,3.00453033,653.78,653.25,0.3061615]
[1740085049095,3.00453033,653.77,653.25,0.3061615]
[1740085049296,3.00453033,653.76,653.25,0.3061615]
[1740085049493,3.00453033,653.75,653.25,0.3061615]
[1740085049692,3.00453033,653.74,653.25,0.3061615]
[1740085049897,3.00453033,653.73,653.25,0.3061615]
[1740085050098,3.00453033,653.72,653.25,0.3061615]
[1740085050393,3.00453033,653.71,653.25,0.3061615]
[1740085050598,3.00453033,653.7,653.34,1.13863774]
[1740085050795,3.00453033,653.69,653.34,1.44475706]
[1740085051097,2.19639725,653.76,653.34,1.44475706]
[1740085051298,3.00533415,653.75,653.34,1.44475706]
[1740085051490,3.00533415,653.74,653.35,0.30611463]
[1740085051694,3.00533415,653.73,653.35,0.30611463]
[1740085051997,0.635,654.01,653.35,0.30611463]
[1740085052191,3.00569601,654.0,653.35,0.30611463]
[1740085052395,3.00569601,653.99,653.35,0.30611463]
[1740085052593,3.00569601,653.98,653.35,0.30611463]
[1740085052795,3.00569601,653.97,653.35,0.30611463]
[1740085052997,3.00569601,653.96,653.35,0.30611463]
[1740085053299,3.00569601,653.95,653.35,0.30611463]
[1740085053498,3.00569601,653.94,653.35,0.30611463]
[1740085053700,3.00569601,653.93,653.35,0.30611463]
[1740085053995,3.00569601,653.92,653.35,0.30611463]
[1740085054197,3.00569601,653.91,653.35,0.30611463]
[1740085054497,3.00569601,653.9,653.35,0.30611463]
[1740085054798,3.00569601,653.89,653.35,1.44475237]
[1740085054991,3.00569601,653.88,653.35,1.44475237]
[1740085055194,3.00569601,653.87,653.35,1.44475237]
[1740085055395,3.00569601,653.86,653.35,1.44475237]
[1740085055598,3.00569601,653.85,653.35,1.44475237]
[1740085055797,3.00569601,653.84,653.35,1.44475237]
[1740085055994,3.00569601,653.83,653.35,1.44475237]
[1740085056198,3.00569601,653.82,653.35,1.44475237]
[1740085056395,3.00569601,653.81,653.35,1.44475237]
[1740085056597,3.00569601,653.8,653.35,1.44475237]
[1740085056795,3.00569601,653.79,653.35,1.44475237]
[1740085057001,3.00569601,653.78,653.35,0.30611463]
[1740085057202,3.00569601,653.77,653.35,0.30611463]
[1740085057500,3.00569601,653.76,653.35,0.30611463]
[1740085057696,3.00569601,653.75,653.35,0.30611463]
[1740085057895,3.00569601,653.74,653.35,0.30611463]
[1740085058099,3.00569601,653.73,653.35,0.30611463]
[1740085058301,3.00569601,653.72,653.35,0.30611463]
[1740085058501,3.00569601,653.71,653.35,0.30611463]
[1740085058699,3.00569601,653.7,653.35,0.30611463]
[1740085058903,3.00569601,653.69,653.35,0.30611463]
[1740085059101,3.0074546,653.68,653.35,0.30611463]
[1740085059302,2.1975641,653.76,653.35,0.30611463]
[1740085059502,3.00747918,653.75,653.35,0.30611463]
[1740085059700,3.00747918,653.74,653.35,0.30611463]
[1740085060006,3.00747918,653.73,653.35,0.30611463]
[1740085060207,3.00747918,653.72,653.35,0.30611463]
[1740085060407,3.00747918,653.71,653.35,0.30611463]
[1740085060603,3.00747918,653.7,653.35,0.30611463]
[1740085060808,3.00747918,653.69,653.35,0.30611463]
[1740085061004,3.00747918,653.68,653.35,0.30611463]
[1740085061201,2.19863677,653.73,653.35,0.30611463]
[1740085061407,3.00707428,653.72,653.35,0.30611463]
[1740085061610,3.00707428,653.71,653.35,0.30611463]
[1740085061807,2.19863677,653.73,653.35,0.30611463]
[1740085061808,3.00707428,653.7,653.35,0.30611463]
[1740085062002,3.00707428,653.69,653.35,0.30611463]
[1740085062205,3.00707428,653.68,653.35,0.30611463]
[1740085062402,2.19863677,653.69,653.35,0.30611463]
[1740085063907,0.635,654.01,653.35,0.30611463]
[1740085064107,3.00722367,654.0,653.35,0.30611463]
[1740085064309,3.00722367,653.99,653.35,0.30611463]
[1740085064505,3.00722367,653.98,653.35,0.30611463]
[1740085064705,3.00722367,653.97,653.35,0.30611463]
[1740085064906,3.00722367,653.96,653.35,0.30611463]
[1740085065208,3.00722367,653.95,653.35,0.30611463]
[1740085065402,3.00722367,653.94,653.35,0.30611463]
[1740085065601,3.00722367,653.93,653.35,0.30611463]
[1740085065805,3.00722367,653.92,653.38,1.13863774]
[1740085066008,3.00722367,653.91,653.38,1.13863774]
[1740085066203,5.20571386,653.9,653.38,1.13863774]
[1740085066402,3.00722367,653.89,653.38,1.13863774]
[1740085066603,3.00722367,653.88,653.38,1.13863774]
[1740085066806,3.00722367,653.87,653.38,1.13863774]
[1740085067004,3.00722367,653.86,653.38,1.13863774]
[1740085067208,3.00722367,653.85,653.38,1.13863774]
[1740085067404,3.00722367,653.84,653.38,1.13863774]
[1740085067608,3.00722367,653.83,653.38,1.13863774]
[1740085067810,3.00722367,653.82,653.38,1.13863774]
[1740085068009,3.00722367,653.81,653.38,1.13863774]
[1740085068209,3.00722367,653.8,653.38,1.13863774]
[1740085068504,3.00722367,653.79,653.38,1.13863774]
[1740085068709,3.00722367,653.78,653.38,1.13863774]
[1740085068910,5.20571386,653.77,653.38,1.13863774]
[1740085069110,3.00722367,653.76,653.38,1.13863774]
[1740085069310,3.00722367,653.75,653.38,1.13863774]
[1740085069502,3.00722367,653.74,653.38,1.13863774]
[1740085069705,3.00722367,653.73,653.38,1.13863774]
[1740085069903,3.00722367,653.72,653.4,1.13863774]
[1740085070108,3.00722367,653.71,653.4,1.13863774]
[1740085070407,3.00722367,653.7,653.4,1.13863774]
[1740085070611,2.19849019,653.71,653.4,1.13863774]
[1740085071712,2.19849019,653.71,653.35,0.30611463]
[1740085071713,2.19849019,653.71,653.39,1.13863774]
[1740085072111,3.211,654.03,653.39,1.13863774]
[1740085072312,3.00802652,654.02,653.39,1.13863774]
[1740085072612,5.20716064,654.01,653.39,1.13863774]
[1740085072812,3.00802652,654.0,653.39,1.13863774]
[1740085073009,3.00802652,653.99,653.39,1.13863774]
[1740085073307,3.00802652,653.98,653.39,1.13863774]
[1740085073612,3.00802652,653.97,653.39,1.13863774]
[1740085073812,3.00802652,653.96,653.39,1.13863774]
[1740085074011,3.00802652,653.95,653.39,1.13863774]
[1740085074211,2.19913412,654.01,653.39,1.13863774]
[1740085074411,3.00813208,654.0,653.39,1.13863774]
[1740085074714,3.00813208,653.99,653.39,1.13863774]
[1740085074912,3.00813208,653.98,653.39,1.13863774]
[1740085075112,3.00813208,653.97,653.39,1.13863774]
[1740085075314,3.00813208,653.96,653.35,0.30611463]
[1740085075615,3.00813208,653.95,653.35,0.30611463]
[1740085075808,2.19913412,654.0,653.35,0.30611463]
[1740085076413,2.19913412,653.99,653.35,0.30611463]
[1740085078014,2.19913412,653.98,653.35,0.30611463]
[1740085079614,2.19913412,653.97,653.35,0.30611463]
[1740085080615,3.00859031,653.96,653.35,0.30611463]
[1740085080811,3.00859031,653.95,653.35,0.30611463]
[1740085081011,3.00859031,653.94,653.35,0.30611463]
[1740085081216,3.00859031,653.93,653.35,0.30611463]
[1740085081412,5.20772443,653.92,653.35,0.30611463]
[1740085081617,2.19913412,653.92,653.35,0.30611463]
[1740085083421,2.452,654.03,653.35,0.30611463]
[1740085083422,2.19913412,653.91,653.35,0.30611463]
[1740085085520,2.19913412,653.9,653.35,0.30611463]
[1740085086719,3.00978746,653.89,653.35,0.30611463]
[1740085086919,3.00978746,653.88,653.35,0.30611463]
[1740085087120,3.00970229,653.87,653.35,0.30611463]
[1740085087320,3.00970229,653.86,653.35,0.30611463]
[1740085087516,3.00970229,653.85,653.35,0.30611463]
[1740085087718,3.00970229,653.84,653.35,0.30611463]
[1740085087918,3.00970229,653.83,653.35,0.30611463]
[1740085088122,3.00970229,653.82,653.35,0.30611463]
[1740085088324,3.00970229,653.81,653.35,0.30611463]
[1740085088524,3.00970229,653.8,653.35,0.30611463]
[1740085088724,3.00970229,653.79,653.35,0.30611463]
[1740085088919,3.00970229,653.78,653.35,0.30611463]
[1740085089121,3.00970229,653.77,653.35,0.30611463]
[1740085089325,3.00970229,653.76,653.35,0.30611463]
[1740085089522,3.00970229,653.75,653.35,0.30611463]
[1740085089724,3.00970229,653.74,653.35,0.30611463]
[1740085089922,2.19913412,653.79,653.35,0.30611463]
[1740085090126,3.01051671,653.78,653.35,0.30611463]
[1740085090426,2.19913412,653.79,653.35,0.30611463]
[1740085090427,3.01051671,653.77,653.35,0.30611463]
[1740085090727,3.01051671,653.76,653.35,0.30611463]
[1740085090926,3.01051671,653.75,653.35,0.30611463]
[1740085091128,2.19913412,653.75,653.35,0.30611463]
[1740085091529,3.01061628,653.74,653.35,0.30611463]
[1740085091729,2.19913412,653.75,653.35,0.30611463]
[1740085092027,3.0106621,653.74,653.35,0.30611463]
[1740085092223,2.19913412,653.75,653.35,0.30611463]
[1740085092428,3.01053535,653.74,653.35,0.30611463]
[1740085092728,2.19913412,653.75,653.35,0.30611463]
[1740085092925,3.01056882,653.74,653.35,0.30611463]
[1740085093227,5.20970294,653.73,653.35,0.30611463]
[1740085093429,3.01056882,653.72,653.35,0.30611463]
[1740085093629,2.19913412,653.73,653.35,0.30611463]
[1740085094030,2.19913412,653.73,653.39,1.13863774]
[1740085094930,2.452,654.03,653.39,1.13863774]
[1740085095131,3.01066678,654.02,653.39,1.13863774]
[1740085095324,3.01066678,654.01,653.39,1.13863774]
[1740085095530,3.01066678,654.0,653.39,1.13863774]
[1740085095729,2.20097053,654.01,653.39,1.13863774]
[1740085095730,3.01066678,653.99,653.39,1.13863774]
[1740085095932,3.01066678,653.98,653.39,1.13863774]
[1740085096128,3.01066678,653.97,653.35,0.30611463]
[1740085096330,3.01066678,653.96,653.35,0.30611463]
[1740085096526,3.01066678,653.95,653.35,0.30611463]
[1740085096727,3.01066678,653.94,653.35,0.30611463]
[1740085096927,3.01066678,653.93,653.35,0.30611463]
[1740085097131,3.01066678,653.92,653.35,0.30611463]
[1740085097332,3.01066678,653.91,653.35,0.30611463]
[1740085097626,3.01066678,653.9,653.35,0.30611463]
[1740085097831,3.01066678,653.89,653.35,0.30611463]
[1740085098036,3.01066678,653.88,653.35,0.30611463]
[1740085098234,3.01066678,653.87,653.35,0.30611463]
[1740085098432,3.01066678,653.86,653.35,0.30611463]
[1740085098634,3.01066678,653.85,653.37,1.13863774]
[1740085098834,3.01066678,653.84,653.37,1.13863774]
[1740085099033,3.01066678,653.83,653.37,1.13863774]
[1740085099233,3.01066678,653.82,653.37,1.13863774]
[1740085099536,2.20097053,653.85,653.37,1.13863774]
[1740085099537,3.01066678,653.81,653.37,1.13863774]
[1740085099833,3.01066678,653.8,653.37,1.13863774]
[1740085100027,3.01066678,653.79,653.37,1.13863774]
[1740085100233,3.01066678,653.78,653.37,1.13863774]
[1740085100533,3.01066678,653.77,653.37,1.13863774]
[1740085100733,3.01066678,653.76,653.37,1.13863774]
[1740085100934,3.01066678,653.75,653.37,1.13863774]
[1740085101134,2.20097053,653.76,653.35,0.30611463]
[1740085101135,3.01066678,653.74,653.35,1.44475237]
[1740085101335,3.01066678,653.73,653.35,1.44475237]
[1740085101533,2.20097053,653.76,653.35,1.44475237]
[1740085101835,3.0123927,653.75,653.35,1.44475237]
[1740085102036,3.0123927,653.74,653.35,1.44475237]
[1740085102232,3.0123927,653.73,653.35,1.44475237]
[1740085102434,3.0123927,653.72,653.35,1.44475237]
[1740085102634,2.20097053,653.72,653.35,1.44475237]
[1740085103238,2.20097053,653.72,653.5,1.13863774]
[1740085104136,1.939,654.04,653.5,1.13863774]
[1740085104330,3.01244091,654.03,653.5,1.13863774]
[1740085104534,3.01244091,654.02,653.5,1.13863774]
[1740085104730,3.01244091,654.01,653.5,1.13863774]
[1740085104932,3.01244091,654.0,653.5,1.13863774]
[1740085105235,3.01244091,653.99,653.51,1.13863774]
[1740085105436,3.01244091,653.98,653.51,1.13863774]
[1740085105634,3.01244091,653.97,653.51,1.13863774]
[1740085105831,3.01244091,653.96,653.51,1.13863774]
[1740085106039,2.20226636,653.96,653.51,1.13863774]
[1740085106233,2.20226636,653.96,653.35,0.30611463]
[1740085107035,0.634,654.03,653.35,0.30611463]
[1740085107437,2.19943183,654.02,653.35,0.30611463]
[1740085108437,2.95741577,654.01,652.9,1.59631197]
[1740085108638,2.95741577,654.0,652.91,0.30632093]
[1740085108837,2.95741577,653.99,652.91,0.30632093]
[1740085109043,2.95741577,653.98,652.91,0.30632093]
[1740085109238,2.95741577,653.97,652.91,0.30632093]
[1740085109442,2.95741577,653.96,652.91,0.30632093]
[1740085109643,2.95741577,653.95,652.91,0.30632093]
[1740085109942,2.95741577,653.94,652.91,0.30632093]
[1740085110144,2.95741577,653.93,652.91,0.30632093]
[1740085110442,2.95741577,653.92,652.91,0.30632093]
[1740085110642,2.95741577,653.91,652.91,0.30632093]
[1740085110844,2.95741577,653.9,652.91,0.30632093]
[1740085111045,2.95741577,653.89,652.91,0.30632093]
[1740085111341,2.95741577,653.88,652.91,0.30632093]
[1740085111540,2.95741577,653.87,652.91,0.30632093]
[1740085111743,2.95741577,653.86,652.91,0.30632093]
[1740085111941,2.95741577,653.85,652.91,0.30632093]
[1740085112144,2.95741577,653.84,652.91,0.30632093]
[1740085112341,2.95741577,653.83,652.91,0.30632093]
[1740085112546,2.95741577,653.82,652.91,0.30632093]
[1740085112746,2.95741577,653.81,652.91,0.30632093]
[1740085112942,2.95741577,653.8,652.91,0.30632093]
[1740085113142,2.95741577,653.79,652.91,0.30632093]
[1740085113345,2.19943183,653.81,652.91,0.30632093]
[1740085113546,2.95164605,653.8,652.91,0.30632093]
[1740085113847,2.19943183,653.81,652.91,0.30632093]
[1740085114047,2.95170668,653.8,652.91,0.30632093]
[1740085114248,2.19943183,653.79,652.91,0.30632093]
[1740085114946,2.95101624,653.78,652.91,0.30632093]
[1740085115146,2.95101624,653.77,652.91,0.30632093]
[1740085115350,2.19943183,653.79,652.91,0.30632093]
[1740085115550,2.95054602,653.78,652.91,0.30632093]
[1740085115849,5.14997918,653.77,652.91,0.30632093]
[1740085116148,2.95054735,653.76,652.91,0.30632093]
[1740085116350,2.19943183,653.77,652.91,0.30632093]
[1740085116351,2.95054735,653.75,652.91,0.30632093]
[1740085116544,2.95054735,653.74,652.91,0.30632093]
[1740085116844,2.95054735,653.73,652.91,0.30632093]
[1740085117047,2.95054735,653.72,652.91,0.30632093]
[1740085117241,1.741,653.88,652.91,0.30632093]
[1740085117242,5.14997918,653.71,652.91,0.30632093]
[1740085117446,2.95054735,653.7,652.91,0.30632093]
[1740085117746,2.95054735,653.69,652.91,0.30632093]
[1740085117948,2.95054735,653.68,652.91,0.30632093]
[1740085118244,2.95054735,653.67,652.91,0.30632093]
[1740085118545,2.19943183,653.71,652.91,0.30632093]
[1740085118750,2.19943183,653.66,652.91,0.30632093]
[1740085120141,2.19943183,653.65,652.91,0.30632093]
[1740085122152,2.19943183,653.64,652.91,0.30632093]
[1740085123855,2.19943183,653.63,652.91,0.30632093]
[1740085125453,0.634,653.71,652.91,0.30632093]
[1740085125454,2.19943183,653.62,652.91,0.30632093]
[1740085127352,2.19943183,653.61,652.91,0.30632093]
[1740085128254,2.94572222,653.6,652.91,0.30632093]
[1740085128449,5.14515405,653.59,652.91,0.30632093]
[1740085128655,2.94572222,653.58,652.91,0.30632093]
[1740085128850,2.19943183,653.59,652.91,0.30632093]
[1740085129555,2.19943183,653.58,652.91,0.30632093]
[1740085131256,2.19943183,653.57,652.91,0.30632093]
[1740085133054,2.19943183,653.56,652.91,0.30632093]
[1740085134756,2.19943183,653.55,652.91,0.30632093]
[1740085135756,2.94467361,653.54,652.91,0.30632093]
[1740085135955,2.94467361,653.53,652.91,0.30632093]
[1740085136157,2.94467361,653.52,652.91,0.30632093]
[1740085136359,2.19943183,653.53,652.91,0.30632093]
[1740085136551,2.94472031,653.52,652.91,0.30632093]
[1740085136752,2.19943183,653.53,652.91,0.30632093]
[1740085136753,2.94476358,653.51,652.91,0.30632093]
[1740085137060,2.19943183,653.53,652.91,0.30632093]
[1740085137655,2.94485468,653.52,652.91,0.30632093]
[1740085137858,2.19943183,653.53,652.91,0.30632093]
[1740085138054,2.94486924,653.52,652.91,0.30632093]
[1740085138254,2.19943183,653.52,652.91,0.30632093]
[1740085138658,1.968,653.62,652.91,0.30632093]
[1740085139461,2.94561229,653.61,652.91,0.30632093]
[1740085139662,1.968,653.62,652.91,0.30632093]
[1740085140560,4.208,653.76,652.91,0.30632093]
[1740085140757,2.94587884,653.75,652.91,0.30632093]
[1740085140960,5.13544333,653.74,652.91,0.30632093]
[1740085141156,2.18956449,653.74,652.91,0.30632093]
[1740085142564,2.18956449,653.74,653.01,1.13863774]
[1740085142761,2.18956449,653.74,653.02,0.30626933]
[1740085142959,4.208,653.76,653.02,0.30626933]
[1740085142960,2.18956449,653.73,653.02,0.30626933]
[1740085144465,4.208,653.76,653.02,0.30626933]
[1740085144466,2.18956449,653.72,653.02,0.30626933]
[1740085145964,4.208,653.76,653.02,0.30626933]
[1740085147161,2.328,653.76,653.02,0.30626933]
[1740085147966,1.694,653.76,653.02,0.30626933]
[1740085148167,1.13768997,654.97,653.02,0.30626933]
[1740085148365,3.25335496,654.96,653.02,0.30626933]
[1740085148559,2.94799281,654.95,653.02,0.30626933]
[1740085148762,3.25336429,654.94,653.02,0.30626933]
[1740085148967,3.25336895,654.93,653.02,0.30626933]
[1740085149164,3.25337361,654.92,653.02,0.30626933]
[1740085149366,3.25337828,654.91,653.02,0.30626933]
[1740085149561,2.94799281,654.9,653.02,0.30626933]
[1740085149761,0.30538547,654.91,653.02,0.30626933]
[1740085149762,2.94799281,654.89,653.02,0.30626933]
[1740085149965,2.94799281,654.88,653.02,0.30626933]
[1740085150167,2.94799281,654.87,653.02,0.30626933]
[1740085150465,2.94799281,654.86,653.02,0.30626933]
[1740085150661,2.94799281,654.85,653.02,0.30626933]
[1740085150861,2.94799281,654.84,653.02,0.30626933]
[1740085151067,2.94799281,654.83,653.02,0.30626933]
[1740085151266,2.94799281,654.82,653.02,0.30626933]
[1740085151461,2.94799281,654.81,653.02,0.30626933]
[1740085151660,2.94799281,654.8,653.02,0.30626933]
[1740085151863,2.94799281,654.79,653.02,0.30626933]
[1740085152061,2.94799281,654.78,653.02,0.30626933]
[1740085152263,2.94799281,654.77,653.02,0.30626933]
[1740085152469,5.13894355,654.76,653.02,0.30626933]
[1740085152767,2.94799281,654.75,653.02,0.30626933]
[1740085152966,2.94799281,654.74,653.02,0.30626933]
[1740085153266,2.94799281,654.73,653.02,0.30626933]
[1740085153467,2.94799281,654.72,653.02,0.30626933]
[1740085153666,2.94799281,654.71,653.02,0.30626933]
[1740085153861,2.94799281,654.7,653.02,0.30626933]
[1740085154065,2.94799281,654.69,653.02,0.30626933]
[1740085154267,2.94799281,654.68,653.02,0.30626933]
[1740085154462,2.94799281,654.67,653.02,0.30626933]
[1740085154662,2.94799281,654.66,653.02,0.30626933]
[1740085154862,2.94799281,654.65,653.02,0.30626933]
[1740085155067,2.94799281,654.64,653.02,0.30626933]
[1740085155369,2.94799281,654.63,653.02,0.30626933]
[1740085155568,2.19095074,654.68,653.02,0.30626933]
[1740085155569,2.94799281,654.62,653.02,0.30626933]
[1740085155769,2.94799281,654.61,653.02,0.30626933]
[1740085155964,2.94799281,654.6,653.02,0.30626933]
[1740085156168,2.94799281,654.59,653.02,0.30626933]
[1740085156368,2.94799281,654.58,653.02,0.30626933]
[1740085156571,2.94799281,654.57,653.02,0.30626933]
[1740085156771,2.94799281,654.56,653.02,0.30626933]
[1740085156965,2.94799281,654.55,653.02,0.30626933]
[1740085157170,2.94799281,654.54,653.02,0.30626933]
[1740085157365,2.94799281,654.53,653.02,0.30626933]
[1740085157566,2.94799281,654.52,653.02,0.30626933]
[1740085157768,2.94799281,654.51,653.02,0.30626933]
[1740085157968,2.94799281,654.5,653.02,0.30626933]
[1740085158170,2.94799281,654.49,653.02,0.30626933]
[1740085158371,2.94799281,654.48,653.02,0.30626933]
[1740085158572,2.94799281,654.47,653.02,0.30626933]
[1740085158871,5.13894355,654.46,653.02,0.30626933]
[1740085159072,2.94799281,654.45,653.02,0.30626933]
[1740085159371,2.94799281,654.44,653.02,0.30626933]
[1740085159568,2.94799281,654.43,653.02,0.30626933]
[1740085159769,2.94799281,654.42,653.02,0.30626933]
[1740085159966,2.94799281,654.41,653.02,0.30626933]
[1740085160172,2.94799281,654.4,653.02,0.30626933]
[1740085160466,2.94799281,654.39,653.02,0.30626933]
[1740085160672,2.94799281,654.38,653.02,0.30626933]
[1740085160872,2.94799281,654.37,653.02,0.30626933]
[1740085161171,2.94799281,654.36,653.02,0.30626933]
[1740085161371,2.19095074,654.39,653.02,0.30626933]
[1740085161372,2.94799281,654.35,653.02,0.30626933]
[1740085161571,2.94799281,654.34,653.02,0.30626933]
[1740085161766,2.94799281,654.33,653.02,0.30626933]
[1740085161969,2.94799281,654.32,653.02,0.30626933]
[1740085162272,2.94799281,654.31,653.02,0.30626933]
[1740085162469,2.94799281,654.3,653.02,0.30626933]
[1740085162667,2.94799281,654.29,653.02,0.30626933]
[1740085162868,2.94799281,654.28,653.02,0.30626933]
[1740085163069,2.94799281,654.27,653.02,0.30626933]
[1740085163266,2.94799281,654.26,653.02,0.30626933]
[1740085163471,2.94799281,654.25,653.02,0.30626933]
[1740085163765,2.94799281,654.24,653.02,0.30626933]
[1740085163973,2.94799281,654.23,653.02,0.30626933]
[1740085164271,2.94799281,654.22,653.02,0.30626933]
[1740085164466,2.94799281,654.21,653.02,0.30626933]
[1740085164670,2.94799281,654.2,653.02,0.30626933]
[1740085164872,2.94799281,654.19,653.02,0.30626933]
[1740085165071,2.94799281,654.18,653.02,0.30626933]
[1740085165270,2.94799281,654.17,653.02,0.30626933]
[1740085165471,2.94799281,654.16,653.02,0.30626933]
[1740085165668,2.94799281,654.15,653.02,0.30626933]
[1740085165868,2.94799281,654.14,653.02,0.30626933]
[1740085166072,2.94799281,654.13,653.02,0.30626933]
[1740085166274,2.94799281,654.12,653.02,0.30626933]
[1740085166467,2.94799281,654.11,653.02,0.30626933]
[1740085166671,2.94799281,654.1,653.02,0.30626933]
[1740085166869,2.94799281,654.09,653.02,0.30626933]
[1740085167081,2.94799281,654.08,653.02,0.30626933]
[1740085167375,2.94799281,654.07,653.02,0.30626933]
[1740085167674,2.94799281,654.06,653.02,0.30626933]
[1740085167875,2.94799281,654.05,653.02,0.30626933]
[1740085168071,2.94799281,654.04,653.02,0.30626933]
[1740085168275,2.94799281,654.03,653.02,0.30626933]
[1740085168471,2.94799281,654.02,653.02,0.30626933]
[1740085168674,2.94799281,654.01,653.02,0.30626933]
[1740085168875,2.94799281,654.0,653.02,0.30626933]
[1740085169076,2.94799281,653.99,653.02,0.30626933]
[1740085169277,2.94799281,653.98,653.02,0.30626933]
[1740085169477,2.94799281,653.97,653.02,0.30626933]
[1740085169680,2.94799281,653.96,653.02,0.30626933]
[1740085169878,2.94799281,653.95,653.02,0.30626933]
[1740085170077,2.94799281,653.94,653.02,0.30626933]
[1740085170277,2.94799281,653.93,653.02,0.30626933]
[1740085170481,2.94799281,653.92,653.02,0.30626933]
[1740085170681,2.94799281,653.91,653.02,0.30626933]
[1740085170879,2.94799281,653.9,653.02,0.30626933]
[1740085171083,2.94799281,653.89,653.02,0.30626933]
[1740085171285,2.94799281,653.88,653.02,0.30626933]
[1740085171486,2.94799281,653.87,653.02,0.30626933]
[1740085171787,2.94799281,653.86,653.02,0.30626933]
[1740085171987,2.94799281,653.85,653.02,0.30626933]
[1740085172188,2.94799281,653.84,653.02,0.30626933]
[1740085172388,2.94799281,653.83,653.02,0.30626933]
[1740085172588,2.94799281,653.82,653.02,0.30626933]
[1740085172789,2.94799281,653.81,653.02,0.30626933]
[1740085173084,2.94799281,653.8,653.02,0.30626933]
[1740085173289,2.19095074,653.82,653.02,0.30626933]
[1740085175086,2.19095074,653.81,653.02,0.30626933]
[1740085176494,2.19095074,653.8,653.02,0.30626933]
[1740085177992,2.19095074,653.79,653.02,0.30626933]
[1740085178995,2.19095074,653.78,653.02,0.30626933]
[1740085180591,2.19095074,653.77,653.02,0.30626933]
[1740085181698,2.19095074,653.77,653.17,1.13863774]
[1740085181896,2.19095074,653.77,653.18,0.30619431]
[1740085182092,2.19095074,653.76,653.18,0.30619431]
[1740085183699,5.13555964,653.75,653.18,0.30619431]
[1740085183899,2.19095074,653.75,653.18,0.30619431]
[1740085184200,2.19095074,653.75,653.22,1.13863774]
[1740085184498,2.94511854,653.74,653.23,0.30617087]
[1740085184699,2.94511854,653.73,653.23,0.30617087]
[1740085184899,2.19095074,653.75,653.23,0.30617087]